fUST/lending_fUST_20240212
["ID","MTS","AMOUNT","RATE_DAILY","PERIOD"]
[313754250,1707674829244,154.87609912,0.00017748,3]
[313754251,1707674853248,154.87609912,0.00017748,3]
[313754253,1707674871244,154.87609912,0.00017989,3]
[313754256,1707674887263,154.87609912,0.00017748,3]
[313754265,1707674901258,154.87609912,0.00017748,3]
[313754266,1707674919253,154.87609912,0.00017748,3]
[313754274,1707674939245,154.87609912,0.00017977,3]
[313754281,1707674959247,154.87609912,0.00017977,3]
[313754284,1707674973249,154.87609912,0.00017748,3]
[313754285,1707674991254,154.87609912,0.00017748,3]
[313754289,1707675013286,154.87609912,0.00017748,3]
[313754291,1707675031287,154.87609912,0.00017748,3]
[313754313,1707675035078,-212.72419898,0.00018899,2]
[313754314,1707675035087,-292.98915344,0.000189,2]
[313754316,1707675035097,-1000.0,0.00019,19]
[313754318,1707675035107,-169.675524,0.00019178,2]
[313754320,1707675035116,-353.54190943,0.000195,2]
[313754408,1707675041923,-762.04077632,0.000195,2]
[313754409,1707675041933,-284.52395143,0.00019721,2]
[313754410,1707675041945,-64.96310017,0.00019721,2]
[313754412,1707675041954,-189.29335551,0.00019722,2]
[313754414,1707675041965,-310.70664449,0.00019722,2]
[313754416,1707675041975,-500.0,0.00019722,2]
[313754418,1707675041984,-652.94,0.00019722,2]
[313754420,1707675041993,-611.06,0.00019722,2]
[313754421,1707675042003,-500.0,0.00019722,2]
[313754423,1707675042012,-2658.62,0.00019722,2]
[313754424,1707675042021,-2780.67,0.00019722,2]
[313754425,1707675042031,-500.0,0.00019722,2]
[313754426,1707675042039,-577.6,0.00019722,2]
[313754427,1707675042049,-500.0,0.00019723,2]
[313754428,1707675042059,-619.58,0.00019723,2]
[313754429,1707675042068,-5899.15,0.00019974,2]
[313754430,1707675042077,-500.0,0.00019974,2]
[313754431,1707675042087,-500.0,0.00019974,2]
[313754432,1707675042096,-500.0,0.00019974,2]
[313754433,1707675042105,-2769.14,0.00019979,2]
[313754434,1707675042115,-500.0,0.00019984,2]
[313754435,1707675042125,-501.1148631,0.00019985,2]
[313754436,1707675042133,-506.64612967,0.00019985,2]
[313754437,1707675042142,-501.42662856,0.00019985,2]
[313754438,1707675042151,-500.0,0.00019985,2]
[313754439,1707675042161,-500.57362981,0.00019985,2]
[313754440,1707675042169,-500.69680368,0.00019985,2]
[313754441,1707675042178,-500.0,0.00019985,2]
[313754442,1707675042187,-500.0,0.00019985,2]
[313754443,1707675042196,-500.0,0.00019985,2]
[313754444,1707675042205,-500.0,0.00019985,2]
[313754445,1707675042214,-618.32,0.00019985,2]
[313754446,1707675042223,-500.0,0.00019989,2]
[313754447,1707675042232,-2912.83,0.00019989,2]
[313754448,1707675042242,-500.0,0.00019989,2]
[313754449,1707675042251,-502.38595326,0.00019995,2]
[313754450,1707675042260,-500.0,0.00019995,2]
[313754451,1707675042269,-500.54203164,0.00019995,2]
[313754452,1707675042278,-500.0,0.00019995,2]
[313754453,1707675042287,-503.70723929,0.00019995,2]
[313754454,1707675042296,-500.0,0.00019995,2]
[313754455,1707675042306,-349.77231191,0.00019995,2]
[313754456,1707675042315,-500.0,0.00019995,2]
[313754457,1707675042325,-513.24906881,0.00019995,2]
[313754458,1707675042334,-590.56,0.00019995,2]
[313754459,1707675042344,-500.0,0.00019995,2]
[313754460,1707675042353,-500.0,0.00019995,2]
[313754461,1707675042362,-500.0,0.00019995,2]
[313754462,1707675042372,-504.9890649,0.00019995,2]
[313754463,1707675042381,-500.0,0.00019995,2]
[313754464,1707675042390,-500.0,0.00019995,2]
[313754465,1707675042399,-103.69278694,0.00019995,2]
[313754466,1707675042413,-397.89590041,0.00019995,2]
[313754467,1707675042422,-307.5012378,0.00019995,2]
[313754468,1707675042437,-213.24270859,0.00019995,2]
[313754469,1707675042446,-500.0,0.00019995,2]
[313754470,1707675042455,-21.50419427,0.00019995,2]
[313754475,1707675043717,-1086.027425,0.0001999,3]
[313754476,1707675043768,-23860.372575,0.0001999,3]
[313754478,1707675043778,-479.80580573,0.00019995,2]
[313754480,1707675043788,-500.0,0.00019995,2]
[313754481,1707675043797,-1671.99,0.00019995,2]
[313754482,1707675043806,-2120.3,0.00019995,2]
[313754483,1707675043816,-685.99,0.00019995,2]
[313754484,1707675043830,-509.86,0.00019995,2]
[313754485,1707675043841,-500.0,0.00019995,2]
[313754486,1707675043850,-687.3,0.00019995,2]
[313754487,1707675043859,-519.24,0.00019995,2]
[313754488,1707675043869,-500.0,0.00019995,2]
[313754489,1707675043879,-2711.96,0.00019995,2]
[313754490,1707675043889,-500.0,0.00019996,2]
[313754491,1707675043898,-500.0,0.00019996,2]
[313754492,1707675043907,-652.94,0.00019996,2]
[313754493,1707675043917,-611.06,0.00019996,2]
[313754494,1707675043928,-500.0,0.00019996,2]
[313754495,1707675043937,-2658.62,0.00019996,2]
[313754496,1707675043946,-2780.67,0.00019996,2]
[313754497,1707675043955,-500.0,0.00019996,2]
[313754498,1707675043964,-577.6,0.00019996,2]
[313754499,1707675043974,-500.0,0.00019997,2]
[313754500,1707675043983,-619.58,0.00019997,2]
[313754501,1707675043992,-250.0,0.00019999,2]
[313754502,1707675044002,-155.3088614,0.0002,2]
[313754503,1707675044012,-14695.21256205,0.0002,2]
[313754530,1707675046910,-502.89961341,0.0002,2]
[313754531,1707675046927,-30112.33128886,0.0002,2]
[313754550,1707675452336,154.87609912,0.00018896,3]
[313754553,1707675470343,154.87609912,0.00017984,3]
[313754554,1707675488342,154.87609912,0.00017984,3]
[313754556,1707675504336,154.87609912,0.00017978,3]
[313754558,1707675524340,154.87609912,0.00017984,3]
[313754559,1707675542353,154.87609912,0.00017975,3]
[313754561,1707675562345,154.87609912,0.00017975,3]
[313754563,1707675582364,154.87609912,0.00017975,3]
[313754568,1707675600564,154.87609912,0.00017975,3]
[313754574,1707675618364,154.87609912,0.00017975,3]
[313754575,1707675640351,154.87609912,0.00017975,3]
[313754577,1707675662376,154.87609912,0.00017975,3]
[313754579,1707675678377,154.87609912,0.00017975,3]
[313754580,1707675696364,154.87609912,0.00017975,3]
[313754581,1707675714490,154.87609912,0.00017975,3]
[313754583,1707675734480,154.87609912,0.00017975,3]
[313754584,1707675750376,154.87609912,0.00017979,3]
[313754586,1707675770368,154.87609912,0.00017979,3]
[313754588,1707675788367,154.87609912,0.00017984,3]
[313754589,1707675806368,154.87609912,0.00017979,3]
[313754590,1707675817340,-1000.0,0.0002,20]
[313754591,1707675828377,154.87609912,0.0001798,3]
[313754592,1707675841177,-1000.0,0.00021,21]
[313754595,1707675844380,154.87609912,0.00017984,3]
[313754596,1707675849349,-1000.0,0.00022,22]
[313754597,1707675860379,154.87609912,0.0001798,3]
[313754598,1707675880384,154.87609912,0.00017984,3]
[313754600,1707675898386,154.87609912,0.00017979,3]
[313754601,1707675907518,-195.32610229,0.000189,2]
[313754602,1707675907542,-88.67389771,0.00018984,2]
[313754603,1707675918393,154.87609912,0.00017978,3]
[313754604,1707675936384,154.87609912,0.00017978,3]
[313754605,1707675954506,154.87609912,0.00017978,3]
[313754607,1707675968962,1500.0,0.0001999,3]
[313754608,1707675972397,154.87609912,0.00017984,3]
[313754609,1707675988385,154.87609912,0.00017984,3]
[313754611,1707676004387,154.87609912,0.00017979,3]
[313754612,1707676012036,-150.0,0.000189,2]
[313754613,1707676012060,-812.25173219,0.00018984,2]
[313754614,1707676012083,-607.74826781,0.000195,2]
[313754615,1707676020390,154.87609912,0.00017984,3]
[313754616,1707676038402,154.87609912,0.00017984,3]
[313754617,1707676056407,154.87609912,0.00017979,3]
[313754619,1707676078399,154.87609912,0.00017984,3]
[313754620,1707676082939,-1000.0,0.000195,5]
[313754624,1707676096413,154.87609912,0.00017979,3]
[313754625,1707676104777,-261.34913906,0.000195,5]
[313754626,1707676104828,-592.65086094,0.0001999,3]
[313754633,1707676118407,154.87609912,0.00017984,3]
[313754641,1707676138405,154.87609912,0.00017979,3]
[313754644,1707676164417,154.87609912,0.00017984,3]
[313754648,1707676188413,154.87609912,0.00017979,3]
[313754651,1707676210436,154.87609912,0.00017984,3]
[313754652,1707676217940,-1000.0,0.00023,23]
[313754653,1707676230436,154.87609912,0.00017979,3]
[313754724,1707676238019,-418.0225575,0.000195,2]
[313754725,1707676238028,-1941.40078389,0.00019782,2]
[313754727,1707676238040,-1163.66021852,0.00019782,2]
[313754729,1707676238049,-88.84562465,0.00019978,2]
[313754815,1707676241677,-67.3244121,0.00019978,2]
[313754816,1707676241686,-1498.47437011,0.00019978,2]
[313754817,1707676241695,-185.07172042,0.00019982,2]
[313754818,1707676241705,-2292.29656473,0.00019983,2]
[313754819,1707676241716,-499.16343527,0.00019983,2]
[313754820,1707676241725,-500.0,0.00019983,2]
[313754821,1707676241734,-500.0,0.00019983,2]
[313754822,1707676241743,-500.0,0.00019984,2]
[313754823,1707676241752,-500.0,0.00019984,2]
[313754824,1707676241761,-500.0,0.00019984,2]
[313754825,1707676241770,-500.0,0.00019984,2]
[313754826,1707676241779,-500.0,0.00019984,2]
[313754827,1707676241788,-598.53,0.00019984,2]
[313754828,1707676241797,-2437.06,0.00019984,2]
[313754829,1707676241806,-2548.95,0.00019984,2]
[313754830,1707676241814,-500.0,0.00019984,2]
[313754831,1707676241824,-500.0,0.00019984,2]
[313754832,1707676241833,-397.33828932,0.00019984,2]
[313754833,1707676241841,-500.0,0.00019984,2]
[313754834,1707676241850,-541.14201342,0.00019984,2]
[313754835,1707676241859,-500.0,0.00019984,2]
[313754836,1707676241869,-500.0,0.00019984,2]
[313754837,1707676241877,-500.0,0.00019984,2]
[313754838,1707676241886,-384.58556666,0.00019984,2]
[313754839,1707676241895,-208.94775662,0.00019984,2]
[313754840,1707676241904,-500.0,0.00019984,2]
[313754841,1707676241913,-529.47,0.00019984,2]
[313754842,1707676241922,-4668.32,0.00019984,2]
[313754843,1707676241932,-500.0,0.00019984,2]
[313754844,1707676241941,-500.0,0.00019984,2]
[313754845,1707676241950,-500.0,0.00019984,2]
[313754846,1707676241959,-500.0,0.00019984,2]
[313754847,1707676241968,-500.0,0.00019984,2]
[313754848,1707676241977,-560.14,0.00019985,2]
[313754849,1707676241987,-5653.35,0.00019986,2]
[313754850,1707676241996,-2653.76,0.00019986,2]
[313754851,1707676242005,-500.0,0.00019986,2]
[313754852,1707676242014,-500.0,0.00019986,2]
[313754853,1707676242023,-500.0,0.00019986,2]
[313754854,1707676242033,-500.0,0.00019986,2]
[313754855,1707676242042,-500.0,0.00019986,2]
[313754856,1707676242051,-500.0,0.00019986,2]
[313754857,1707676242060,-592.56,0.00019987,2]
[313754858,1707676242070,-500.0,0.00019987,2]
[313754859,1707676242079,-294.39218614,0.00019987,2]
[313754860,1707676242088,-500.0,0.00019987,2]
[313754861,1707676242097,-500.0,0.00019987,2]
[313754862,1707676242107,-1602.32,0.00019987,2]
[313754863,1707676242116,-2031.95,0.00019987,2]
[313754864,1707676242125,-657.41,0.00019987,2]
[313754865,1707676242134,-473.82743135,0.00019989,2]
[313754866,1707676242148,-92.12256865,0.00019989,2]
[313754867,1707676242157,-500.0,0.00019989,2]
[313754868,1707676242166,-500.0,0.00019989,2]
[313754870,1707676242319,-514.8001787,0.00019989,2]
[313754871,1707676242329,-500.0,0.00019989,2]
[313754872,1707676242339,-233.89051818,0.00019989,2]
[313754873,1707676242348,-500.0,0.00019989,2]
[313754874,1707676242357,-511.00525584,0.00019989,2]
[313754875,1707676242366,-500.0,0.00019989,2]
[313754876,1707676242375,-500.0,0.00019989,2]
[313754877,1707676242385,-591.65455513,0.00019989,2]
[313754878,1707676242394,-500.0,0.00019989,2]
[313754879,1707676242403,-500.0,0.00019989,2]
[313754880,1707676242412,-500.0,0.00019989,2]
[313754881,1707676242422,-520.52546431,0.00019989,2]
[313754882,1707676242432,-581.54295343,0.00019989,2]
[313754883,1707676242441,-500.0,0.00019989,2]
[313754884,1707676242450,-637.15416006,0.00019989,2]
[313754885,1707676242461,-855.62,0.00019989,2]
[313754886,1707676242470,-503.9385645,0.00019989,2]
[313754887,1707676242480,-500.0,0.00019989,2]
[313754888,1707676242489,-239.946822,0.0001999,2]
[313754889,1707676242497,-21237.22,0.0001999,3]
[313754890,1707676242507,-309.84507746,0.00019995,2]
[313754891,1707676242516,-614.49,0.00019995,2]
[313754892,1707676242525,-500.0,0.00019995,2]
[313754893,1707676242534,-195.39482592,0.00019998,2]
[313754894,1707676242544,-589.07952239,0.00019998,2]
[313754895,1707676242553,-155.45691459,0.00019998,2]
[313754896,1707676242562,-550.33813105,0.00019998,2]
[313754897,1707676242571,-7062.47353951,0.00019998,2]
[313754898,1707676242580,-176.03211544,0.00019998,2]
[313754899,1707676242589,-152.860343,0.00019998,2]
[313754900,1707676242598,-250.0,0.00019999,2]
[313754901,1707676242608,-29440.84163369,0.0002,2]
[313754902,1707676242616,-324.25284351,0.0002,2]
[313754903,1707676242626,-681.3383372,0.0002,2]
[313754904,1707676242635,-12100.82973136,0.0002,2]
[313754906,1707676242644,-1202.57082301,0.0002,2]
[313754908,1707676242654,-155.07598723,0.0002,2]
[313754909,1707676242663,-155.94017769,0.0002,2]
[313754911,1707676242673,-56501.58148669,0.0002,2]
[313754913,1707676242686,-9841.14588598,0.0002,2]
[313754914,1707676244376,-7093.36592845,0.0002,2]
[313754915,1707676244387,-160562.43831909,0.0002,2]
[313754916,1707676244395,-151.0,0.0002,2]
[313754917,1707676244404,-2791.46,0.00020257,2]
[313754918,1707676244413,-500.0,0.00020257,2]
[313754919,1707676244423,-500.0,0.00020257,2]
[313754920,1707676244432,-500.0,0.00020258,2]
[313754921,1707676244441,-423.27111753,0.00020258,2]
[313754922,1707676244449,-500.0,0.00020258,2]
[313754923,1707676244458,-515.25098374,0.00020258,2]
[313754924,1707676244467,-210.93574206,0.00020258,2]
[313754925,1707676244476,-598.53,0.00020258,2]
[313754926,1707676244485,-2437.06,0.00020258,2]
[313754927,1707676244493,-2548.95,0.00020258,2]
[313754928,1707676244502,-500.0,0.00020258,2]
[313754929,1707676244511,-500.0,0.00020258,2]
[313754930,1707676244520,-500.0,0.00020258,2]
[313754931,1707676244529,-500.0,0.00020258,2]
[313754932,1707676244538,-500.0,0.00020258,2]
[313754933,1707676244547,-500.0,0.00020258,2]
[313754934,1707676244556,-500.0,0.00020258,2]
[313754935,1707676244566,-529.47,0.00020258,2]
[313754936,1707676244575,-4668.32,0.00020258,2]
[313754937,1707676244584,-553.62720162,0.00020258,2]
[313754938,1707676244593,-500.0,0.00020258,2]
[313754939,1707676244602,-577.2,0.00020258,2]
[313754940,1707676244611,-500.0,0.00020258,2]
[313754941,1707676244620,-500.0,0.00020258,2]
[313754942,1707676244630,-560.14,0.00020259,2]
[313754943,1707676244640,-5653.35,0.0002026,2]
[313754944,1707676244650,-2653.76,0.0002026,2]
[313754945,1707676244659,-500.0,0.0002026,2]
[313754946,1707676244671,-262.49220445,0.0002026,2]
[313754947,1707676244680,-500.0,0.0002026,2]
[313754948,1707676244690,-500.0,0.0002026,2]
[313754949,1707676244699,-500.0,0.0002026,2]
[313754950,1707676244707,-500.0,0.0002026,2]
[313754952,1707676244717,-592.56,0.00020261,2]
[313754953,1707676244726,-500.0,0.00020261,2]
[313754954,1707676244735,-500.0,0.00020261,2]
[313754955,1707676244745,-500.0,0.00020261,2]
[313754956,1707676244754,-1602.32,0.00020261,2]
[313754957,1707676244764,-2031.95,0.00020261,2]
[313754958,1707676244772,-657.41,0.00020261,2]
[313754959,1707676244781,-565.95,0.00020263,2]
[313754960,1707676244791,-500.0,0.00020263,2]
[313754961,1707676244800,-500.0,0.00020263,2]
[313754962,1707676244808,-500.0,0.00020263,2]
[313754963,1707676244817,-500.0,0.00020263,2]
[313754964,1707676244827,-500.0,0.00020263,2]
[313754965,1707676244835,-500.0,0.00020263,2]
[313754966,1707676244845,-619.55587708,0.00020263,2]
[313754967,1707676244854,-500.0,0.00020263,2]
[313754968,1707676244863,-500.0,0.00020263,2]
[313754969,1707676244872,-500.0,0.00020263,2]
[313754970,1707676244881,-855.62,0.00020263,2]
[313754971,1707676244890,-500.0,0.00020263,2]
[313754972,1707676244899,-614.49,0.00020269,2]
[313754973,1707676244908,-500.0,0.00020269,2]
[313754974,1707676244919,-15533.33021985,0.00020473,2]
[313754975,1707676244928,-6104.82966841,0.00020473,2]
[313754976,1707676244937,-5000.0,0.00020473,2]
[313754977,1707676244946,-34252.37295996,0.00020473,2]
[313755014,1707676245909,-6178.61,0.00020473,2]
[313755016,1707676245922,-1505.44414232,0.00020473,2]
[313755018,1707676245931,-5000.0,0.00020473,2]
[313755019,1707676245940,-13650.92970266,0.00020473,2]
[313755020,1707676245949,-5000.0,0.00020473,2]
[313755021,1707676245958,-20817.53983597,0.00020473,2]
[313755022,1707676245967,-5000.0,0.00020473,2]
[313755023,1707676245977,-10328.20457444,0.00020473,2]
[313755024,1707676245986,-5000.0,0.00020473,2]
[313755025,1707676245996,-2791.46,0.00020531,2]
[313755026,1707676246006,-500.0,0.00020531,2]
[313755027,1707676246015,-500.0,0.00020531,2]
[313755028,1707676246024,-500.0,0.00020532,2]
[313755029,1707676246034,-500.0,0.00020532,2]
[313755030,1707676246043,-598.53,0.00020532,2]
[313755031,1707676246052,-2437.06,0.00020532,2]
[313755032,1707676246062,-2548.95,0.00020532,2]
[313755033,1707676246071,-500.0,0.00020532,2]
[313755034,1707676246081,-500.0,0.00020532,2]
[313755035,1707676246090,-500.0,0.00020532,2]
[313755036,1707676246098,-500.0,0.00020532,2]
[313755037,1707676246108,-500.0,0.00020532,2]
[313755038,1707676246117,-259.77473987,0.00020532,2]
[313755039,1707676246126,-500.0,0.00020532,2]
[313755040,1707676246134,-529.47,0.00020532,2]
[313755041,1707676246143,-4668.32,0.00020532,2]
[313755042,1707676246152,-500.0,0.00020532,2]
[313755043,1707676246162,-505.23460937,0.00020532,2]
[313755044,1707676246173,-500.0,0.00020532,2]
[313755045,1707676246186,-560.14,0.00020533,2]
[313755046,1707676246196,-5653.35,0.00020534,2]
[313755047,1707676246206,-2653.76,0.00020534,2]
[313755048,1707676246215,-500.0,0.00020534,2]
[313755049,1707676246224,-500.0,0.00020534,2]
[313755050,1707676246233,-500.0,0.00020534,2]
[313755051,1707676246242,-500.0,0.00020534,2]
[313755052,1707676246251,-500.0,0.00020534,2]
[313755053,1707676246262,-592.56,0.00020535,2]
[313755054,1707676246272,-500.0,0.00020535,2]
[313755055,1707676246282,-500.0,0.00020535,2]
[313755056,1707676246294,-500.0,0.00020535,2]
[313755057,1707676246304,-1602.32,0.00020535,2]
[313755058,1707676246314,-2031.95,0.00020535,2]
[313755059,1707676246324,-657.41,0.00020535,2]
[313755060,1707676246334,-565.95,0.00020537,2]
[313755061,1707676246345,-500.0,0.00020537,2]
[313755062,1707676246355,-500.0,0.00020537,2]
[313755063,1707676246365,-500.0,0.00020537,2]
[313755064,1707676246375,-311.14462462,0.00020537,2]
[313755065,1707676246385,-500.0,0.00020537,2]
[313755066,1707676246394,-500.0,0.00020537,2]
[313755067,1707676246405,-500.0,0.00020537,2]
[313755068,1707676246414,-504.20952575,0.00020537,2]
[313755069,1707676246423,-501.04436325,0.00020537,2]
[313755070,1707676246433,-855.62,0.00020537,2]
[313755071,1707676246441,-500.0,0.00020537,2]
[313755072,1707676246450,-614.49,0.00020543,2]
[313755073,1707676246459,-500.0,0.00020543,2]
[313755074,1707676246469,-2000.0,0.000206,2]
[313755075,1707676246478,-153.0,0.000206,2]
[313755076,1707676246487,-151.0,0.00020618,2]
[313755077,1707676246496,-1756.20956114,0.00020667,3]
[313755078,1707676246505,-753.95150618,0.00020678,2]
[313755079,1707676246515,-14902.60304131,0.00020678,2]
[313755081,1707676304976,981.02470086,0.00018599,2]
[313755085,1707676373863,573.74982233,0.00018599,5]
[313755088,1707676448562,1579.53736118,0.00018896,7]
[313755089,1707676520806,5000.0,0.00018896,2]
[313755092,1707676623018,537.66917544,0.00018896,2]
[313755093,1707676744363,161.35398337,0.00018799,2]
[313755094,1707676821228,900.9256299,0.00018676,2]
[313755097,1707677169294,-500.0,0.00041208,120]
[313755098,1707677169317,-260.0,0.00041208,120]
[313755099,1707677169340,-337.6932532,0.00041208,120]
[313755100,1707677169363,-998902.3067468,0.00041208,60]
[313755101,1707677185158,-5000000.0,0.00041208,60]
[313755102,1707677194068,-5000000.0,0.00041208,60]
[313755143,1707677434770,-154.87609912,0.00018897,3]
[313755145,1707677434780,-2720.08877614,0.00018899,5]
[313755147,1707677434789,-833.08089307,0.000189,2]
[313755149,1707677434798,-164.70328022,0.00019075,2]
[313755151,1707677434807,-905.47961217,0.00019075,2]
[313755153,1707677434816,-169.583742,0.00019178,2]
[313755155,1707677434825,-607.74826781,0.000195,2]
[313755157,1707677434834,-210.15507116,0.00019885,2]
[313755159,1707677434843,-156.0183118,0.00019974,2]
[313755161,1707677434852,-13041.12,0.00019975,3]
[313755162,1707677434861,-10867.6,0.00019975,3]
[313755164,1707677434870,-9056.33,0.00019975,3]
[313755166,1707677434879,-155.02015262,0.00019978,2]
[313755168,1707677434888,-15649.34,0.00019978,3]
[313755170,1707677434897,-500.0,0.00019983,2]
[313755172,1707677434906,-500.0,0.00019983,2]
[313755174,1707677434915,-500.0,0.00019983,2]
[313755176,1707677434924,-500.0,0.00019983,2]
[313755178,1707677434933,-500.0,0.00019983,2]
[313755180,1707677434942,-500.0,0.00019983,2]
[313755182,1707677434951,-641.53,0.00019983,2]
[313755184,1707677434961,-555.05245881,0.00019983,2]
[313755186,1707677434970,-154.93834477,0.00019983,2]
[313755188,1707677434979,-500.0,0.00019983,2]
[313755190,1707677434988,-500.0,0.00019983,2]
[313755192,1707677435000,-500.0,0.00019983,2]
[313755194,1707677435011,-500.0,0.00019983,2]
[313755196,1707677435021,-500.0,0.00019983,2]
[313755198,1707677435030,-500.0,0.00019983,2]
[313755199,1707677435039,-500.18404944,0.00019983,2]
[313755201,1707677435049,-361.22021786,0.00019983,2]
[313755203,1707677435058,-523.71,0.00019983,2]
[313755205,1707677435067,-546.86262069,0.00019983,2]
[313755207,1707677435077,-500.76047021,0.00019983,2]
[313755209,1707677435087,-500.0,0.00019983,2]
[313755211,1707677435097,-185.07172042,0.00019983,2]
[313755213,1707677435106,-500.0,0.00019984,2]
[313755215,1707677435116,-500.0,0.00019984,2]
[313755217,1707677435126,-537.68,0.00019984,2]
[313755219,1707677435135,-701.02560949,0.00019985,2]
[313755221,1707677435145,-500.0,0.00019985,2]
[313755223,1707677435154,-500.0,0.00019985,2]
[313755225,1707677435164,-9322.28,0.00019985,2]
[313755227,1707677435174,-500.0,0.00019985,2]
[313755229,1707677435184,-2132.43,0.00019985,2]
[313755231,1707677435194,-518.49,0.00019985,2]
[313755233,1707677435204,-500.0,0.00019985,2]
[313755235,1707677435214,-2726.47674552,0.00019985,2]
[313755317,1707677438271,-10265.85325448,0.00019985,2]
[313755319,1707677438281,-2230.33,0.00019985,2]
[313755321,1707677438290,-500.0,0.00019985,2]
[313755323,1707677438300,-4946.68,0.00019985,2]
[313755324,1707677438310,-500.0,0.00019985,2]
[313755327,1707677438320,-500.0,0.00019985,2]
[313755328,1707677438329,-500.0,0.00019985,2]
[313755331,1707677438338,-500.0,0.00019985,2]
[313755332,1707677438348,-500.0,0.00019985,2]
[313755335,1707677438358,-182.18272303,0.00019988,2]
[313755336,1707677438367,-2442.53,0.00019988,2]
[313755338,1707677438377,-500.0,0.00019988,2]
[313755340,1707677438386,-500.0,0.00019989,2]
[313755341,1707677438396,-500.0,0.00019989,2]
[313755342,1707677438405,-500.0,0.00019989,2]
[313755344,1707677438414,-500.0,0.00019989,2]
[313755346,1707677438424,-1402.03,0.00019989,2]
[313755347,1707677438432,-1777.96,0.00019989,2]
[313755348,1707677438442,-575.23,0.00019989,2]
[313755350,1707677438451,-748.67,0.00019989,2]
[313755352,1707677438461,-500.0,0.00019989,2]
[313755354,1707677438470,-500.0,0.00019989,2]
[313755355,1707677438479,-61581.62007488,0.0002,2]
[313755367,1707677441206,-1887.64989921,0.0002,2]
[313755376,1707677441275,-11282.01512392,0.0002,2]
[313755378,1707677441284,-324.25284351,0.0002,2]
[313755380,1707677441293,-1154.64748247,0.0002,2]
[313755384,1707677441305,-47.92334054,0.0002,2]
[313755386,1707677441314,-2184.48906993,0.0002,2]
[313755393,1707677442646,-4120.04322011,0.0002,2]
[313755395,1707677442656,-666.73991345,0.0002,2]
[313755397,1707677442671,-14.59842375,0.0002,2]
[313755398,1707677442680,-216.73731939,0.00020243,2]
[313755399,1707677442690,-503.99755222,0.00020253,2]
[313755400,1707677442698,-155.69913895,0.00020253,2]
[313755401,1707677442707,-5828.41116448,0.00020253,3]
[313756015,1707677449930,-522.91657484,0.00020252,5]
[313756017,1707677449939,-3766.87883552,0.00020253,3]
[313756019,1707677449948,-199.0416319,0.00020254,2]
[313756021,1707677449957,-500.0,0.00020257,2]
[313756023,1707677449967,-500.0,0.00020257,2]
[313756025,1707677449976,-500.0,0.00020257,2]
[313756027,1707677449985,-500.0,0.00020257,2]
[313756029,1707677449995,-641.53,0.00020257,2]
[313756031,1707677450003,-273.0,0.00020257,2]
[313756033,1707677450012,-317.76,0.00020257,2]
[313756035,1707677450021,-500.0,0.00020257,2]
[313756037,1707677450031,-500.0,0.00020257,2]
[313756040,1707677450040,-523.71,0.00020257,2]
[313756042,1707677450062,-271.77,0.00020257,2]
[313756044,1707677450072,-500.0,0.00020258,2]
[313756046,1707677450082,-500.0,0.00020258,2]
[313756049,1707677450092,-537.68,0.00020258,2]
[313756051,1707677450101,-250.0,0.00020258,2]
[313756053,1707677450111,-500.0,0.00020259,2]
[313756055,1707677450121,-500.0,0.00020259,2]